Cogmind - Beta 12 --- EXPLORER MODE // 2023.08.28 @ 21:52:04 Player: Analote Result: Destroyed by as-47620 with Assembled Heavy Rifle Performance ------------- Evolutions (3) 1500 Regions Visited (8) 1600 Robots Destroyed (61) 305 Value Destroyed (2397) 2397 Prototype IDs (12) 240 Alien Tech Used (0) 0 Bonus (2427) 2427 TOTAL SCORE: 8469 Bonus ------- Met Imprinter 300 Was Imprinted 300 Destroyed Z-Imprinter 1000 Triggered Deep Caves Wall 500 Exposed GOLEM Chamber 500 Friendly Fire -173 Cogmind --------- Core Integrity 0/700 Matter 144/300 Energy 22/100 System Corruption 3% Temperature Cool (12) Movement Core (700) Ox13 Location -7/Deep Caves Parts ------- > --- POWER (2) -------- (None) > --- PROPULSION (4) --- (None) > --- UTILITY (6) ------ High-capacity Storage Unit Experimental Target Analyzer > --- WEAPON (2) ------- (None) > --- INVENTORY (20) --- Weapon Cycler Transmission Jammer Improved Propulsion Shielding Utility Shielding Graphene Brace Graphene Brace High-powered Tractor Beam High-powered Tractor Beam Riot Gun Riot Gun Field Laser Field Laser Advanced Beam Rifle Advanced Beam Rifle Improved Assault Rifle Rocket Launcher RU-N14's Throwing Claymores (3) Peak State ------------ > --- POWER ------------ Improved Deuterium Engine Zionite Light DM Reactor > --- PROPULSION ------- Zionite Glidesys I Zionite Glidesys I > --- UTILITY ---------- Improved Heat Sink High-capacity Storage Unit Improved Terrain Scanner Experimental Target Analyzer Experimental Armor Integrity Analyzer Experimental Reaction Control System > --- WEAPON ----------- RU-N14's Throwing Claymores RU-N14's Throwing Claymores > --- INVENTORY -------- Weapon Cycler Transmission Jammer Improved Propulsion Shielding Utility Shielding Graphene Brace Graphene Brace High-powered Tractor Beam High-powered Tractor Beam Riot Gun Riot Gun Field Laser Field Laser Advanced Beam Rifle Advanced Beam Rifle Improved Assault Rifle Rocket Launcher RU-N14's Throwing Claymores [Rating: 80] Favorites ----------- Power Nuclear Core Engine Improved Ion Engine Power Core Nuclear Core Reactor Zionite Light DM Reactor Propulsion Carbon-fiber Leg Treads Light Treads Leg Carbon-fiber Leg Hover Unit Zionite Glidesys I Utility High-capacity Storage Unit Device Improved Terrain Scanner Storage High-capacity Storage Unit Processor Improved Terrain Scan Processor Hackware Experimental System Shield Protection Utility Shielding Weapon Field Laser Energy Gun Field Laser Ballistic Gun Heavy Assault Rifle Launcher Rocket Launcher Special Weapon RU-N14's Throwing Claymores Build | -11 -10 -9 -8 -7 -7 -7 -7 -7 ------- Run | Jun Mat Mat Mat Fac Low Low Zio Dee Slots Evolved 7 | . 1 2 2 2 . . . . Power 1 | . . . . 1 . . . . Propulsion 2 | . . . 2 . . . . . Utility 4 | . 1 2 . 1 . . . . Weapon . | . . . . . . . . . Parts Attached 73 | 7 2 11 15 9 3 5 12 9 Power 9 | 1 . 1 3 1 . 1 1 1 Engine 5 | 1 . 1 1 . . 1 1 . Core 3 | . . . 2 1 . . . . Reactor 1 | . . . . . . . . 1 Propulsion 9 | 2 . 2 2 . 1 . . 2 Treads 2 | 2 . . . . . . . . Leg 5 | . . 2 2 . 1 . . . Wheel . | . . . . . . . . . Hover 2 | . . . . . . . . 2 Flight . | . . . . . . . . . Utility 18 | 2 2 3 3 2 . . 5 1 Device 6 | . . 1 2 1 . . 1 1 Storage 2 | 1 1 . . . . . . . Processor 5 | . 1 . 1 . . . 3 . Hackware 1 | . . . . . . . 1 . Protection 4 | 1 . 2 . 1 . . . . Artifact . | . . . . . . . . . Weapon 37 | 2 . 5 7 6 2 4 6 5 Energy Gun 23 | 2 . 3 6 4 2 2 2 2 Energy Cannon . | . . . . . . . . . Ballistic Gun 3 | . . 2 . . . 1 . . Ballistic Cannon . | . . . . . . . . . Launcher 5 | . . . 1 2 . 1 1 . Special Weapon 6 | . . . . . . . 3 3 Impact Weapon . | . . . . . . . . . Slashing Weapon . | . . . . . . . . . Piercing Weapon . | . . . . . . . . . Special Melee Weapon . | . . . . . . . . . Unidentified Prototypes 12 | . . 1 2 . . . 5 4 Parts Lost 19 | . . . . . . 2 3 14 Power 5 | . . . . . . 1 1 3 Propulsion 6 | . . . . . . 1 1 4 Utility 5 | . . . . . . . 1 4 Weapon 3 | . . . . . . . . 3 Highest Loss Streak 11 | . . . . . . 2 3 11 To Critical Strikes . | . . . . . . . . . Average Slot Usage (%) 90 | . 100 99 99 100 100 91 87 76 Engine 5 | . 12 10 2 . . 5 5 6 Core 5 | . . . 4 14 14 7 7 1 Treads 3 | . 25 11 . . . . . . Leg 15 | . . 8 33 28 28 21 18 3 Device 17 | . . 10 15 18 21 21 20 20 Storage 7 | . 12 10 8 7 7 7 7 7 Processor 10 | . 12 10 8 7 7 7 10 13 Protection 6 | . 12 20 8 9 7 7 3 . Energy Gun 11 | . 25 16 15 10 14 12 11 2 Special Weapon 2 | . . . . . . . 2 11 Naked Turns . | . . . . . . . . . Heaviest Build 80 | 18 48 57 57 62 62 65 76 80 Greatest Support 62 | 40 40 40 60 60 62 62 47 30 Greatest Overweight (x) 26 | 1 1 1 . 1 1 1 2 26 Average Overweight (x) 1 | . . 1 . . . . 1 4 Largest Inventory Capacity 20 | 10 20 20 20 20 20 20 20 20 Average Capacity 19 | 8 16 20 20 20 20 20 20 20 Most Carried 20 | 4 3 11 16 18 20 16 19 19 Average Carried 13 | 1 1 5 12 15 17 13 13 17 Final Capacity 20 | 10 20 20 20 20 20 20 20 20 Final Carried 18 | 2 3 10 16 18 16 13 17 17 Class Distribution -------------------- 100% | Hacker-Mutant Dominant Class ---------------- Hacker-Mutant | -10/Materials Hacker-Mutant | -9/Materials Hacker-Mutant | -8/Materials Hacker-Mutant | -7/Factory Hacker-Mutant | -7/Lower Caves Hacker-Mutant | -7/Lower Caves Hacker-Mutant | -7/Zion Hacker-Mutant | -7/Deep Caves Resources | -11 -10 -9 -8 -7 -7 -7 -7 -7 ----------- Run | Jun Mat Mat Mat Fac Low Low Zio Dee Matter Collected 1003 | 107 183 107 167 . 213 100 34 92 Remotely . | . . . . . . . . . Salvage Created 2533 | . 263 260 623 73 517 417 . 380 Parts 120 | . 18 21 20 6 22 18 . 15 Haulers Intercepted 1 | . . . 1 . . . . . Recyclers Shooed 1 | . 1 . . . . . . . Parts Field Recycled . | . . . . . . . . . Retrieved Matter . | . . . . . . . . . Parts Self-Destructed . | . . . . . . . . . Prevented . | . . . . . . . . . Kills | -11 -10 -9 -8 -7 -7 -7 -7 -7 ------- Run | Jun Mat Mat Mat Fac Low Low Zio Dee Combat Hostiles Destroyed 83 | . 5 4 11 1 12 9 . 41 Guns 40 | . 5 4 9 . 12 7 . 3 Cannons 4 | . . . . . . . . 4 AOE 38 | . . . 1 1 . 2 . 34 Classes Destroyed 12 | . 3 2 2 3 . . . 2 Worker 1 | . . . . 1 . . . . Builder 1 | . . . . 1 . . . . Hauler 1 | . . . 1 . . . . . Watcher 7 | . 3 3 . 1 . . . . Swarmer 11 | . 2 . . . 5 4 . . Grunt 22 | . 3 2 7 . 6 4 . . Brawler 1 | . . 1 . . . . . . Sentry 4 | . . 1 1 . 1 1 . . Hunter 3 | . . . 3 . . . . . Programmer 1 | . . . . 1 . . . . Z-Light 8 | . . . . . . . . 8 Assembled 32 | . . . . . . . . 32 Best Kill Streak 26 | . 2 2 3 3 6 7 . 26 Combat Bots Only 26 | . 2 2 3 1 6 7 . 26 Max Kills in Single Turn 24 | . 1 1 1 2 2 2 . 24 Gunslinging 1 | . . . . . 1 . . . Exploded 24 | . . . 1 1 . 2 . 24 Melee . | . . . . . . . . . Uniques/NPCs Destroyed 1 | . . . . . . . . 1 Z-Imprinter (-7/Deep Caves) Combat | -11 -10 -9 -8 -7 -7 -7 -7 -7 -------- Run | Jun Mat Mat Mat Fac Low Low Zio Dee Damage Taken 3173 | . 124 67 310 20 494 365 346 1447 Core 791 | . 21 25 35 . 65 79 34 532 Absorbed by Shields . | . . . . . . . . . Redirected to Shielding 123 | . 5 6 83 3 24 2 . . Regen/Repaired (Parts) 23 | . . . 23 . . . . . Core Remaining (%) 94 | 100 91 93 93 . . . . . Volleys Fired 205 | . 28 13 42 12 29 28 26 27 Largest 2 | . 2 2 2 2 2 2 2 2 Hottest 126 | . 80 126 126 122 122 100 126 60 Shots Fired 368 | . 56 26 74 18 58 56 44 36 Gun 315 | . 56 26 71 11 58 55 30 8 Cannon . | . . . . . . . . . Launcher 19 | . . . 3 7 . 1 8 . Special 34 | . . . . . . . 6 28 Kinetic 14 | . . . . . . 14 . . Thermal 261 | . 56 26 71 11 44 15 30 8 Explosive 53 | . . . 3 7 . 1 14 28 Electromagnetic 40 | . . . . . 14 26 . . Robot Hit Streak 41 | . 15 15 41 20 15 18 . 19 Robot Miss Streak 3 | . 2 1 2 1 3 2 . 1 Penetration Max . | . . . . . . . . . Secondary Targets 7 | . . 1 . . 5 1 . . Max Gunslinging Chain 1 | . . 1 . . 1 1 . . Shots Hit Robots 240 | . 44 18 65 8 49 30 . 26 Core Hits 157 | . 17 12 22 6 22 18 7 53 Critical Kills . | . . . . . . . . . Critical Parts Destroyed . | . . . . . . . . . Critical Strikes 13 | . . . 4 1 4 1 . 3 Burn 10 | . . . 4 1 4 1 . . Sever 3 | . . . . . . . . 3 Melee Attacks . | . . . . . . . . . Impact . | . . . . . . . . . Slashing . | . . . . . . . . . Piercing . | . . . . . . . . . Sneak Attacks . | . . . . . . . . . Combat Hostiles . | . . . . . . . . . Follow-up Attacks . | . . . . . . . . . Damage Inflicted 9839 | . 474 253 1301 283 918 638 173 5799 Guns 3680 | . 474 251 1232 115 918 520 . 170 Cannons . | . . . . . . . . . Explosions 5322 | . . . 69 168 . 118 173 4794 Melee . | . . . . . . . . . Ramming 2 | . . 2 . . . . . . Kinetic 104 | . . . . . . 104 . . Thermal 3187 | . 474 251 1232 115 740 205 . 170 Explosive 5204 | . . . 69 168 . . 173 4794 Electromagnetic 507 | . . . . . 178 329 . . Impact . | . . . . . . . . . Slashing 835 | . . . . . . . . 835 Piercing . | . . . . . . . . . Highest Corruption 3 | . . . . . . . 2 3 Average Corruption 2 | . . . . . . . 2 2 Corruption Purged . | . . . . . . . . . Corruption Blocked . | . . . . . . . . . Effects 26 | . . . . . . . 8 18 Message Errors 8 | . . . . . . . 2 6 Matter Fused 8 | . . . . . . . 2 6 Heat Flow Errors 2 | . . . . . . . 1 1 Energy Discharges 3 | . . . . . . . . 3 Data Loss (minor) 2 | . . . . . . . 1 1 Data Loss (major) 3 | . . . . . . . 2 1 Overload Shots . | . . . . . . . . . Overflow Damage 226 | . . . . . . 22 . 204 Projectiles 57 | . . . . . . . . 57 Explosions 169 | . . . . . . 22 . 147 Melee . | . . . . . . . . . Knockbacks . | . . . . . . . . . Impact . | . . . . . . . . . Kinetic . | . . . . . . . . . Secondary . | . . . . . . . . . Self-Inflicted Damage 47 | . . . . . . 36 11 . Shots 2 | . . . . . . 1 1 . Rammed . | . . . . . . . . . Targets Rammed 1 | . . 1 . . . . . . Kicked 1 | . . 1 . . . . . . Crushed . | . . . . . . . . . Highest Temperature 428 | . 177 66 428 54 355 31 390 161 Average Temperature 97 | . 51 33 95 25 173 8 142 72 Received Heat Transfer 875 | . 84 36 99 . 189 153 . 314 Effects 1 | . . . . . 1 . . . Short Circuit 1 | . . . . . 1 . . . Siege Activations . | . . . . . . . . . Robots Corrupted . | . . . . . . . . . Combat Hostiles . | . . . . . . . . . Parts Fried 2 | . . . . . 2 . . . Impact Corruptions . | . . . . . . . . . Robots Melted 1 | . . . 1 . . . . . Combat Hostiles 1 | . . . 1 . . . . . Parts Melted 16 | . 1 1 6 . 8 . . . Heat Transferred 6988 | . 1100 558 2775 259 1665 409 . 222 Parts Sabotaged . | . . . . . . . . . Parts Stolen . | . . . . . . . . . Parts Stripped . | . . . . . . . . . Power Chain Reactions 1 | . . . . . . 1 . . Missiles Intercepted . | . . . . . . . . . Alert | -11 -10 -9 -8 -7 -7 -7 -7 -7 ------- Run | Jun Mat Mat Mat Fac Low Low Zio Dee Peak Influence 332 | . 168 93 332 131 . . . . Initial 37 | . . 10 28 37 . . . . Average 75 | . 81 48 142 49 . . . . Maximum Alert Level 1 | . . . 1 . . . . . Low Security (%) 94 | 100 100 100 72 100 . . . . Level 1 5 | . . . 27 . . . . . Level 2 . | . . . . . . . . . Level 3 . | . . . . . . . . . Level 4 . | . . . . . . . . . Level 5 . | . . . . . . . . . High Security . | . . . . . . . . . Max Security . | . . . . . . . . . Squads Dispatched 7 | . 1 2 1 3 . . . . Investigation 2 | . 1 . . 1 . . . . Extermination 1 | . . . . 1 . . . . Reinforcement 4 | . . 2 1 1 . . . . Assault . | . . . . . . . . . Garrison . | . . . . . . . . . Intercept . | . . . . . . . . . Searches Triggered . | . . . . . . . . . Construction Impeded . | . . . . . . . . . Haulers Reinforced . | . . . . . . . . . Active Scanning Responses . | . . . . . . . . . Cargo Convoy Interrupts . | . . . . . . . . . Stealth | -11 -10 -9 -8 -7 -7 -7 -7 -7 --------- Run | Jun Mat Mat Mat Fac Low Low Zio Dee Distress Signals 2 | . . 1 1 . . . . . Communications Jammed . | . . . . . . . . . Distress Signals . | . . . . . . . . . Times Spotted 102 | . 11 12 15 3 12 7 . 42 Peak Tracking Total 39 | . 3 3 6 2 7 5 . 39 Tactical Retreats 2 | . . . 2 . . . . . Traps | -11 -10 -9 -8 -7 -7 -7 -7 -7 ------- Run | Jun Mat Mat Mat Fac Low Low Zio Dee Traps Triggered 2 | . . 2 . . . . . . Indirectly . | . . . . . . . . . Trap Hack Attempts . | . . . . . . . . . Triggered . | . . . . . . . . . Disarmed . | . . . . . . . . . Reprogrammed . | . . . . . . . . . Reused . | . . . . . . . . . Traps Extracted . | . . . . . . . . . Installed . | . . . . . . . . . Triggered 1 | . . . . . 1 . . . Machines | -11 -10 -9 -8 -7 -7 -7 -7 -7 ---------- Run | Jun Mat Mat Mat Fac Low Low Zio Dee Machines Disabled 20 | . . 1 . 13 1 2 1 2 Max in Single Turn 13 | . . 1 . 13 1 1 1 1 Machines Repaired . | . . . . . . . . . Machines Sabotaged . | . . . . . . . . . Overloaded Fab Kills . | . . . . . . . . . Hacking | -11 -10 -9 -8 -7 -7 -7 -7 -7 --------- Run | Jun Mat Mat Mat Fac Low Low Zio Dee Machines Accessed 9 | . 3 2 2 2 . . . . Terminals 5 | . 2 2 1 . . . . . Fabricators 2 | . . . . 2 . . . . Repair Stations 1 | . . . 1 . . . . . Recycling Units 1 | . 1 . . . . . . . Scanalyzers . | . . . . . . . . . Garrison Access . | . . . . . . . . . Total Hacks 20 | . 5 6 3 6 . . . . Successful 10 | . 2 3 3 2 . . . . Failed 10 | . 3 3 . 4 . . . . Catastrophic 3 | . 3 . . . . . . . Database Lockouts . | . . . . . . . . . Manual 9 | . 4 1 1 . . . 3 . Terminals 11 | . 4 6 1 . . . . . Fabricators 6 | . . . . 6 . . . . Repair Stations 2 | . . . 2 . . . . . Recycling Units 1 | . 1 . . . . . . . Scanalyzers . | . . . . . . . . . Garrison Access . | . . . . . . . . . Terminal Hacks 4 | . 1 3 . . . . . . Record 1 | . 1 . . . . . . . Robot Analysis 1 | . . 1 . . . . . . Emergency Access Points 1 | . . 1 . . . . . . Dispatch Records 1 | . . 1 . . . . . . Fabricator Hacks 2 | . . . . 2 . . . . Build 2 | . . . . 2 . . . . Repair Station Hacks 2 | . . . 2 . . . . . Scan Component 1 | . . . 1 . . . . . Repair 1 | . . . 1 . . . . . Recycling Unit Hacks 1 | . 1 . . . . . . . Retrieve Matter 1 | . 1 . . . . . . . Scanalyzer . | . . . . . . . . . Garrison Access Hacks . | . . . . . . . . . Unauthorized Hacks 1 | . . . 1 . . . . . Terminals 1 | . . . 1 . . . . . Botnet 1 | . . . 1 . . . . . Fabricators . | . . . . . . . . . Repair Stations . | . . . . . . . . . Recycling Units . | . . . . . . . . . Scanalyzers . | . . . . . . . . . Garrison Access . | . . . . . . . . . Data Cores Recovered . | . . . . . . . . . Used . | . . . . . . . . . Hacking Detections 3 | . 2 . . 1 . . . . Full Trace Events 3 | . 2 . . 1 . . . . Feedback Events . | . . . . . . . . . Feedback Blocked . | . . . . . . . . . Robot Schematics Acquired 3 | . . . . . . . 3 . Robots Built . | . . . . . . . . . Authchips . | . . . . . . . . . Time 134 | . . . . 134 . . . . Total Robot Build Rating . | . . . . . . . . . Part Schematics Acquired 15 | . . . . . . . 15 . Parts Built 2 | . . . . 2 . . . . Authchips . | . . . . . . . . . Time 58 | . . . . 58 . . . . Total Part Build Rating 14 | . . . . 14 . . . . Parts Repaired 1 | . . . 1 . . . . . Time 32 | . . . 32 . . . . . Parts Recycled . | . . . . . . . . . Recycled Matter . | . . . . . . . . . Retrieved Matter . | . . . . . . . . . Retrieved Components . | . . . . . . . . . Parts Scanalyzed . | . . . . . . . . . Part Schematics Acquired . | . . . . . . . . . Parts Damaged . | . . . . . . . . . Bothacking | -11 -10 -9 -8 -7 -7 -7 -7 -7 ------------ Run | Jun Mat Mat Mat Fac Low Low Zio Dee Used RIF Installer . | . . . . . . . . . Robots Hacked . | . . . . . . . . . Non-combat . | . . . . . . . . . Combat . | . . . . . . . . . Robot Hacks Applied . | . . . . . . . . . Relay Couplers Released . | . . . . . . . . . Fabnet Peak Effective % . | . . . . . . . . . Robots Rewired . | . . . . . . . . . Allies Hacked . | . . . . . . . . . Hacks Repelled . | . . . . . . . . . Allies | -11 -10 -9 -8 -7 -7 -7 -7 -7 -------- Run | Jun Mat Mat Mat Fac Low Low Zio Dee Total Allies 4 | . . . . . . . 4 . Largest Group 4 | . . . . . . . 4 4 Highest-Rated Group 159 | . . . . . . . 159 159 Highest-Rated Ally 42 | . . . . . . . 42 42 Total Orders . | . . . . . . . . . Ally Attacks . | . . . . . . . . . Total Damage . | . . . . . . . . . Kills . | . . . . . . . . . Allies Corrupted . | . . . . . . . . . Allies Melted . | . . . . . . . . . Intel | -11 -10 -9 -8 -7 -7 -7 -7 -7 ------- Run | Jun Mat Mat Mat Fac Low Low Zio Dee Robot Analysis Total 1 | . . 1 . . . . . . Derelict Logs Recovered 4 | . . . . . 1 1 2 . Drone Launches . | . . . . . . . . . Drone Recoveries . | . . . . . . . . . Exploration | -11 -10 -9 -8 -7 -7 -7 -7 -7 ------------- Run | Jun Mat Mat Mat Fac Low Low Zio Dee Turns Passed 7122 | 71 606 565 469 609 649 596 2058 1499 Spaces Moved 3124 | 38 239 226 232 273 442 275 979 420 Core 49 | 5 . . . . . . . 44 Treads 396 | 33 239 124 . . . . . . Legs 2451 | . . 102 232 273 442 275 979 148 Wheels . | . . . . . . . . . Hover 228 | . . . . . . . . 228 Flight . | . . . . . . . . . Fastest Speed 50 | 50 160 190 120 120 120 122 190 196 Average Speed 199 | 146 210 217 120 179 122 183 200 337 Slowest Speed 1350 | 160 240 240 120 190 190 193 260 1350 Overloaded Moves . | . . . . . . . . . Propulsion Burnouts . | . . . . . . . . . Robots Hopped . | . . . . . . . . . Cave-ins Triggered 1 | . . . . . . . 1 . Exploration Rate (%) 40 | 3 41 17 29 10 56 43 88 75 Regions Visited 8 Branch Regions 4 Pre-discovered Areas 2 | . . . . . . . 2 . Known Exits Taken 8 | 1 1 1 1 1 1 1 1 . Unknown Exits Taken . | . . . . . . . . . Scrap Searched 7 | . . . . . 2 3 2 . Spaces Dug 22 | . . . . . . 3 19 . Terrain Destroyed 166 | . . . 23 20 . 11 47 65 Melee . | . . . . . . . . . Projectile 1 | . . . . . . . . 1 AOE 165 | . . . 23 20 . 11 47 64 Terrain Rammed . | . . . . . . . . . Walls Destroyed . | . . . . . . . . . Machines Disabled . | . . . . . . . . . Actions | -11 -10 -9 -8 -7 -7 -7 -7 -7 --------- Run | Jun Mat Mat Mat Fac Low Low Zio Dee Total 3636 | 53 287 274 346 371 495 310 1035 465 Wait 149 | . 15 1 41 73 10 1 5 3 Move 3115 | 37 238 225 231 272 441 274 977 420 Hop . | . . . . . . . . . Pick Up 63 | 9 3 15 13 4 5 . 9 5 Fast Attach . | . . . . . . . . . Attach 38 | 7 1 5 6 3 . 3 7 6 Detach 7 | . . 2 1 1 . . 2 1 Swap 35 | . 1 6 9 6 3 2 5 3 Drop 22 | . 1 6 3 . 7 2 3 . Fire 205 | . 28 13 42 12 29 28 26 27 Melee . | . . . . . . . . . Ram . | . . . . . . . . . Kick 1 | . . 1 . . . . . . Crush . | . . . . . . . . . Escape Stasis 1 | . . . . . . . 1 . Rewire . | . . . . . . . . . Trap . | . . . . . . . . . Miscellaneous . | . . . . . . . . . Route ------- -11/Junkyard -10/Materials (discovered 2 exits: *Mat / *Min) -9/Materials -8/Materials -7/Factory -7/Lower Caves -7/Lower Caves -7/Zion -7/Deep Caves (discovered 1 exit: Pro) History --------- Turn | Location | Event 4 | -11/Junkyard | Identified exit to Materials 4 | -11/Junkyard | Discovered exit to Materials (range 16) 72 | -11/Junkyard | Entered Materials 72 | -10/Materials | Evolved 1 slot: Utility x1 317 | -10/Materials | Build established: Hacker-Mutant 379 | -10/Materials | Identified exit to Materials 379 | -10/Materials | Discovered exit to Materials (range 4) 546 | -10/Materials | Identified exit to Mines 546 | -10/Materials | Discovered exit to Mines (range 12) 678 | -10/Materials | Entered another Materials area 678 | -9/Materials | Evolved 2 slots: Utility x2 1213 | -9/Materials | Identified exit to Materials 1213 | -9/Materials | Discovered exit to Materials (range 10) 1243 | -9/Materials | Entered another Materials area 1243 | -8/Materials | Evolved 2 slots: Propulsion x2 1374 | -8/Materials | Repaired Imp. Ion Engine 1664 | -8/Materials | Identified exit to Factory 1664 | -8/Materials | Discovered exit to Factory (range 16) 1712 | -8/Materials | Entered Factory 1712 | -7/Factory | Evolved 2 slots: Power x1, Utility x1 1933 | -7/Factory | Fabricated Graphene Brace (x2) 2296 | -7/Factory | Identified exit to Lower Caves 2296 | -7/Factory | Discovered exit to Lower Caves (range 12) 2321 | -7/Factory | Entered Lower Caves 2656 | -7/Lower Caves | Attracted the attention of an 0b10 base 2952 | -7/Lower Caves | Identified exit to Lower Caves 2952 | -7/Lower Caves | Discovered exit to Lower Caves (range 15) 2970 | -7/Lower Caves | Entered another Lower Caves area 3012 | -7/Lower Caves | Attracted the attention of an 0b10 base 3063 | -7/Lower Caves | Destroyed 7 combat bots 3487 | -7/Lower Caves | Identified exit to Zion 3487 | -7/Lower Caves | Discovered exit to Zion (range 14) 3566 | -7/Lower Caves | Entered Zion 3941 | -7/Zion | Learned location of Extension (-5) 4161 | -7/Zion | Imprinted 4163 | -7/Zion | Declared Zion's savior 4369 | -7/Zion | Learned location of Quarantine (-2) 4520 | -7/Zion | Learned Factory emergency access door positions 4593 | -7/Zion | Found Prototype Processor 4594 | -7/Zion | Identified Exp. Melee Analysis Suite 4599 | -7/Zion | Found Prototype Processor 4600 | -7/Zion | Identified Exp. Armor Integrity Analyzer 4605 | -7/Zion | Found Prototype Hackware 4606 | -7/Zion | Identified Exp. System Shield 4609 | -7/Zion | Found Prototype Processor 4610 | -7/Zion | Identified Exp. Target Analyzer 4841 | -7/Zion | Identified exit to Deep Caves 4841 | -7/Zion | Discovered exit to Deep Caves (range 14) 4936 | -7/Zion | Crushed by falling debris 4967 | -7/Zion | Lost 3 parts (1p1n1u) 5295 | -7/Zion | Found Prototype Special Weapon 5296 | -7/Zion | Identified RU-N14's Throwing Claymores 5300 | -7/Zion | Found RU-N14's Throwing Claymores 5303 | -7/Zion | Found RU-N14's Throwing Claymores 5306 | -7/Zion | Found RU-N14's Throwing Claymores 5616 | -7/Zion | Saw the warning signs outside the Deep Caves entrance 5624 | -7/Zion | Entered Deep Caves 5624 | -7/Deep Caves | Accompanied by 4 allies 5828 | -7/Deep Caves | Attacked by Z-Imprinter 5831 | -7/Deep Caves | Destroyed Z-Imprinter 6026 | -7/Deep Caves | Z-Facility disabled 7002 | -7/Deep Caves | Identified exit to Proximity Caves 7002 | -7/Deep Caves | Discovered exit to Proximity Caves (range 15) 7095 | -7/Deep Caves | Spotted as-98667 7105 | -7/Deep Caves | Exposed GOLEM chamber 7106 | -7/Deep Caves | Triggered Deep Caves wall 7106 | -7/Deep Caves | Core integrity fell below 50% 7120 | -7/Deep Caves | Spotted as-09357 7121 | -7/Deep Caves | Core integrity fell below 20% 7123 | -7/Deep Caves | Destroyed by as-47620 with Assembled Heavy Rifle Last Messages --------------- 07111_ Zio. Glidesys I destroyed. 07112_ as-98667 GOLEM Unit beginning Prototype Device integration. 07112_ as-47308 GOLEM Unit beginning Prototype Leg integration. 07112_ GOLEM Unit springs to life. 07113_ as-35643 GOLEM Unit beginning Prototype Leg integration. 07113_ GOLEM Unit springs to life. 07113_ Zio. Light DM Reactor destroyed. 07113_ Imp. Heat Sink destroyed. 07114_ as-38641 GOLEM Unit beginning Prototype Leg integration. 07114_ as-37880 destroyed. 07115_ GOLEM Unit springs to life. 07115_ Exp. Armor Integrity Analyzer destroyed. 07115_ System corrupted by crushing effect (+1). 07116_ as-44754 GOLEM Unit beginning Prototype Leg integration. 07116_ RU-N14's Throwing Claymores destroyed. 07119_ Destroyed Asb. Hover System. 07119_ as-18587 destroyed. 07119_ RU-N14's Throwing Claymores destroyed. 07119_ FI-0V1(h) destroyed. [Achievement: Overachiever] Map ----- +----------------------------------------------------+ | ??????????????????????????????????????????# | | ?????????????????????????????????######??## | | ????????????????????????????????## #??## | | ????????????????????????????????# #### | | ????????????????????????????????# | | ????????????????????????????????## ##### | | ?????????????????????????????????# ###### | | ??????????????????????#??????????# #?### | | ?????????????????????????????????## #??## | | ?????????????????????????? ???????#### ##? | | ?????????????????? ????????#????## #?? | | ???????????????? ????????###???# #?## | | ????????????? ????????# ##?# #??# | | ???????????Ga ] ? ??????# ### #### | | ?????????" #??###???# ## ## | | ?????????" ##? #???## # | | ????????# ;## ###??# | | ???????? # ?#?## | | ??????? ! ! ;#????##### #### | | ??????? ####?????#####?## | | ??????? a a ??????????#???# | | ?????? ! b ! ##????###???????## | | ?????? ##???## ##?####??# | | ????? =g[ #???# ### #### | | ????? [ a aa%b #???# ## | | ??????" [ [a@* #???# | | ????????# a #??## | | ????????"" #### | | ?????????" ### ## | | ?????????" ## ####### | | ????????G! ## #?????## | | ???????GGG # ##??#??# | | ???????## = M ## ##????# | | ????????" * ### ##?#?# | | ????????" G b ### #??## | | ????????? b l #???# | | ?????????"" ##???## | | ?????????? #?????## | | ?????????? ## #???????# | | ??????????? s # ##???????? | | ??????????? ## #????????# | | ???????????? # # ## #??##????? | | ???????????? #### ## ## #### ##????????? | | ???????????? #?#??# ?# ?###??#####?????????? | | ???????????????????#??#????#????????????????? | | ????????????????????????????#???????????????# | | | | | | | | | +----------------------------------------------------+ Best States ------------- Heat Dissipation 48 Energy Generation 38 Energy Capacity 430 Matter Stores 300 Matter Capacity 300 Sight Range 16 Terrain Scan Range 16 Terrain Scan Density 110 Resistance: KI 35 Resistance: TH 35 Resistance: EX 35 Resistance: EM 35 Resistance: I 35 Resistance: S 35 Resistance: P 35 Propulsion Shielding 66 Utility Shielding 33 Evasion (%) 55 Targeting Accuracy 5 Target Analysis 10 Armor Integrity Analysis 50 Recoil Reduction 2 Offensive Hacking 20 Item Schematics ----------------- Imp. Carbon-fiber Leg | -7/Zion | Archive Plasma Flamer | -7/Zion | Archive Launcher Guidance Computer | -7/Zion | Archive Energy Well | -7/Zion | Archive Imp. Shield Generator | -7/Zion | Archive Imp. Coolant Injector | -7/Zion | Archive Imp. Plasma Cutter | -7/Zion | Archive Imp. Salvage Targeting Computer | -7/Zion | Archive 0b10 Decoder Chip [Generic] | -7/Zion | Archive Mak. Laser | -7/Zion | Archive Hvy. Pick | -7/Zion | Archive Adv. Sensor Array | -7/Zion | Archive Mak. Hammer | -7/Zion | Archive Kinecellerator | -7/Zion | Archive Nuclear Pulse Thruster | -7/Zion | Archive Robot Schematics ------------------ K-01 Serf | -7/Zion | Archive R-06 Scavenger | -7/Zion | Archive L-41 Fighter | -7/Zion | Archive Fabricated ------------ Graphene Brace | x2 | -7/Factory | Preloaded Alien Tech Used ----------------- None Achievements -------------- Are We The Baddies? Killing Spree Overachiever Quick And Dirty That's One Door That Should Stay Closed Challenges ------------ None Game ------ Seed SmartbombFocalProcessor Manual? 0 Play Time 00:34:00 Cumulative 57.2 hours Start 2023.08.28 @ 21:18:22 End 2023.08.28 @ 21:52:04 Sessions 1 Manual Loads 0 Difficulty Explorer Special Mode None Game No. 84 Rogue 0 Adventurer 1 Explorer 83 Win Type - Total 0 Types 0/0/0/0/0/0/0/0/0 Lore% 46 Gallery% 53 Achievement% 51 Wizard Run 0 Options --------- ASCII 0 Keyboard 0 Movement Mouse Keybinds 0 Fullscreen 2 Font 18/SmallcapsGlow Map View 76x50 Tactical HUD 1 Map Filters NONE Filters NONE Steam 1 RUN: 613f933c-6e6c-484d-b415-5ca3772b0290